bitfinex-derivatives/quotes_ETHF0:USTF0_20251024
["timestamp","ask_amount","ask_price","bid_price","bid_amount"]
[1761290158693,3.988,3975.1,3975.0,0.22439929]
[1761290161005,4.84390565,3975.1,3975.0,0.22439929]
[1761290161206,4.84390565,3975.1,3975.0,0.00289929]
[1761290161605,4.84390565,3975.1,3974.3,0.3353]
[1761290161606,0.45281,3974.5,3974.3,0.3353]
[1761290161810,3.6313,3974.5,3974.4,0.7686]
[1761290162299,3.9545,3974.5,3974.4,0.7686]
[1761290162808,3.95684974,3974.5,3974.4,0.77063793]
[1761290163717,4.09164974,3974.5,3974.4,0.77063793]
[1761290164522,4.09164974,3974.5,3974.4,0.00203793]
[1761290165014,4.94755539,3974.5,3974.4,0.00203793]
[1761290165615,4.09164974,3974.5,3974.4,0.00203793]
[1761290167811,4.09164974,3974.5,3974.4,0.54763793]
[1761290167812,12.99264974,3974.5,3974.4,0.54763793]
[1761290168621,12.99264974,3974.5,3974.4,0.21233793]
[1761290169026,12.99264974,3974.5,3974.4,0.00203793]
[1761290170817,1.19957,3973.9,3973.8,0.5456]
[1761290171524,1.19957,3973.9,3973.8,0.7686]
[1761290171818,0.7467,3973.9,3973.8,0.77151207]
[1761290172019,3.4189,3974.0,3973.9,1.22147]
[1761290172220,3.7421,3974.0,3973.9,1.22147]
[1761290172522,3.9545,3974.0,3973.9,0.99847]
[1761290172720,3.9545,3974.0,3973.9,0.5456]
[1761290173022,3.9545,3974.0,3973.9,0.7686]
[1761290175126,3.4189,3974.0,3973.9,0.7686]
[1761290175419,3.2078,3974.0,3973.9,0.7686]
[1761290175620,1.35763,3974.2,3973.9,0.7686]
[1761290175621,0.9048,3974.2,3974.1,0.7686]
[1761290175828,0.73228253,3974.2,3974.1,0.7686]
[1761290176123,3.21014974,3974.5,3974.4,0.45281]
[1761290176323,3.21014974,3974.5,3974.4,1.22141]
[1761290176728,0.00234974,3974.5,3974.4,1.22141]
[1761290177325,0.21344974,3974.5,3974.4,1.22141]
[1761290177527,0.53664974,3974.5,3974.4,1.22141]
[1761290178924,0.3232,3974.4,3974.0,0.4333]
[1761290179131,0.7467,3974.4,3974.3,0.7686]
[1761290181232,3.66295974,3974.5,3973.9,0.4333]
[1761290181233,0.7467,3974.0,3973.9,0.4333]
[1761290181528,0.7467,3974.0,3973.9,0.88617]
[1761290181714,0.7467,3974.0,3973.9,0.7686]
[1761290181921,0.3232,3973.9,3973.8,0.00291207]
[1761290182127,0.7467,3973.9,3973.8,0.00291207]
[1761290183233,0.7467,3973.9,3973.8,0.77151207]
[1761290185635,0.7467,3973.9,3973.8,0.00291207]
[1761290185835,1.64511637,3973.9,3973.8,0.21321207]
[1761290186025,1.64511637,3973.9,3973.8,0.54851207]
[1761290186026,0.7467,3973.9,3973.8,0.54851207]
[1761290186331,0.7467,3973.9,3973.8,0.77151207]
[1761290188133,3.4189,3974.0,3973.9,1.22147]
[1761290188729,3.7421,3974.0,3973.9,1.22147]
[1761290189232,3.4189,3974.0,3973.9,1.22147]
[1761290189930,3.4189,3974.0,3973.9,0.7686]
[1761290190124,3.765,3974.0,3973.9,0.7686]
[1761290191928,3.9874,3974.0,3973.9,0.7686]
[1761290192333,3.765,3974.0,3973.9,0.7686]
[1761290192532,3.2078,3974.0,3973.9,0.7686]
[1761290192938,3.4214,3974.0,3973.9,0.7686]
[1761290193139,3.765,3974.0,3973.9,0.7686]
[1761290193340,3.9874,3974.0,3973.9,0.7686]
[1761290194642,0.5572,3974.2,3974.1,1.22904]
[1761290197435,3.765,3974.4,3974.3,0.45282]
[1761290197636,3.4214,3974.4,3974.3,1.22902]
[1761290198242,3.765,3974.4,3974.3,1.22902]
[1761290198436,0.2136,3974.4,3974.3,1.22902]
[1761290198741,0.73414974,3974.5,3974.4,0.7762]
[1761290199241,0.00234974,3974.5,3974.4,0.7762]
[1761290207742,0.00234974,3974.5,3974.4,3.984]
[1761290210337,1e-08,3974.5,3974.4,8.984]
[1761290210545,0.90080034,3975.6,3975.5,0.9093]
[1761290210745,0.2136,3975.6,3975.5,2.07456918]
[1761290211047,0.5572,3975.8,3975.7,1.22886]
[1761290211350,0.7796,3975.8,3975.7,1.22886]
[1761290211547,0.7814409,3975.8,3975.7,1.22886]
[1761290213247,0.0018409,3975.8,3975.7,2.14525136]
[1761290213452,0.0018409,3975.8,3975.7,1.94143918]
[1761290214346,0.0018409,3975.8,3975.7,2.13944106]
[1761290215237,0.0018409,3975.8,3975.7,1.42686188]
[1761290215442,0.0018409,3975.8,3975.7,1.22886]
[1761290215645,0.2154409,3975.8,3975.7,1.22886]
[1761290216448,0.7814409,3975.8,3975.7,1.22886]
[1761290220650,0.7814409,3975.8,3975.7,0.7762]
[1761290220851,0.2267,3975.6,3975.5,1.01498]
[1761290221149,0.7816,3975.3,3975.1,0.45273]
[1761290221349,1.61749918,3975.2,3975.0,8.0555]
[1761290221549,0.7816,3974.9,3974.8,0.45276]
[1761290221751,0.3294,3974.7,3974.6,0.45278]
[1761290221952,0.7816,3974.7,3974.6,1.01508]
[1761290222655,0.7816,3974.7,3974.6,1.22858]
[1761290225052,0.7816,3974.7,3974.6,0.45278]
[1761290225354,0.7816,3974.7,3974.6,1.22858]
[1761290225855,0.5561,3975.0,3974.9,1.22855]
[1761290226154,0.2267,3975.0,3974.9,1.22855]
[1761290226563,0.5561,3975.3,3975.2,1.22852]
[1761290227442,0.7816,3975.3,3975.2,0.45272]
[1761290227844,0.7816,3975.3,3975.2,0.68322]
[1761290228050,0.7816,3975.3,3975.2,1.01502]
[1761290228445,0.7816,3975.3,3975.2,0.2305]
[1761290228643,0.7816,3975.3,3975.0,0.45274]
[1761290228851,0.3294,3975.2,3975.0,0.45274]
[1761290229063,0.7816,3975.1,3975.0,0.68324]
[1761290229246,0.7816,3975.1,3975.0,1.01504]
[1761290229451,0.2267,3975.3,3975.1,0.45273]
[1761290229650,0.4522,3975.3,3975.1,0.45273]
[1761290229957,0.4522,3975.3,3975.1,1.01503]
[1761290230261,0.7816,3975.2,3975.1,0.68323]
[1761290230560,0.7816,3975.2,3975.1,1.01503]
[1761290231561,0.7816,3975.2,3975.1,1.22853]
[1761290235061,0.5561,3975.4,3975.2,0.45271]
[1761290235257,0.5561,3975.4,3975.3,0.7758]
[1761290235456,0.7816,3975.4,3975.3,0.7758]
[1761290236853,0.5561,3975.7,3975.6,0.45267]
[1761290237056,0.90264124,3975.8,3975.6,0.45267]
[1761290237057,0.0018409,3975.8,3975.7,0.7758]
[1761290244965,0.0018409,3975.8,3975.7,3.9836]
[1761290248065,0.0018409,3975.8,3975.7,12.8776]
[1761290256977,0.77138,3976.4,3976.3,0.7705]
[1761290256978,0.7701,3976.4,3976.3,0.7705]
[1761290257880,0.77242228,3976.4,3976.3,0.7705]
[1761290258584,0.00232228,3976.4,3976.3,0.7705]
[1761290259581,0.32112228,3976.4,3976.3,0.7705]
[1761290260181,0.55192228,3976.4,3976.3,0.7705]
[1761290260779,0.77242228,3976.4,3976.3,0.7705]
[1761290269984,0.55192228,3976.4,3976.3,0.7705]
[1761290271488,0.23312228,3976.4,3976.3,0.7705]
[1761290271989,0.00232228,3976.4,3976.3,0.7705]
[1761290272190,0.55192228,3976.4,3976.3,0.7705]
[1761290272887,0.00232228,3976.4,3976.3,0.7705]
[1761290274281,0.5496,3976.9,3976.8,1.22304]
[1761290274487,0.2308,3976.9,3976.8,1.22304]
[1761290275192,0.23392463,3976.9,3976.8,1.22487377]
[1761290276795,0.00312463,3976.9,3976.8,1.22487377]
[1761290276992,0.55272463,3976.9,3976.8,1.22487377]
[1761290278389,0.23392463,3976.9,3976.8,1.22487377]
[1761290279099,0.55272463,3976.9,3976.8,1.22487377]
[1761290282292,0.78202463,3976.9,3976.8,0.77233377]
[1761290282495,0.1283,3976.5,3975.9,1.24827699]
[1761290282695,0.1283,3976.5,3975.8,9.91634]
[1761290282696,0.7838,3975.9,3975.8,9.91634]
[1761290283096,0.7838,3975.9,3975.8,10.13024]
[1761290283798,0.7838,3975.9,3975.8,10.1321758]
[1761290285099,0.213,3975.9,3975.8,10.1321758]
[1761290285498,0.5545,3976.1,3976.0,1.36893]
[1761290286492,0.7838,3976.1,3976.0,0.7886]
[1761290287397,0.7838,3976.1,3975.8,9.3435758]
[1761290287398,0.4423,3976.1,3975.8,0.0019358]
[1761290287595,0.4423,3976.1,3975.8,8.8909358]
[1761290287596,1.23644,3975.9,3975.8,8.8909358]
[1761290288294,1.23644,3975.9,3975.8,0.0019358]
[1761290293004,4.44424,3975.9,3975.8,0.0019358]
[1761290293905,3.9916,3975.9,3975.8,0.0019358]
[1761290294100,3.9916,3975.9,3975.8,0.5766358]
[1761290294910,0.7838,3975.9,3975.8,0.5766358]
[1761290298206,0.7838,3975.9,3975.8,0.7905358]
[1761290299515,0.213,3975.9,3975.8,0.7905358]
[1761290299715,0.5545,3975.9,3975.8,0.7905358]
[1761290301315,0.7838,3975.9,3975.8,0.0019358]
[1761290310417,0.4303,3975.4,3975.3,0.4527]
[1761290310618,1.63476828,3975.4,3975.3,0.4527]
[1761290311019,0.7798,3975.2,3975.1,4.22763]
[1761290311521,0.7798,3975.2,3975.1,4.22958264]
[1761290312324,0.7798,3975.2,3975.1,0.45468264]
[1761290312718,0.7798,3975.2,3975.1,0.79008264]
[1761290312917,0.7798,3975.2,3975.1,0.00195264]
[1761290314713,1.67998878,3975.2,3975.1,0.00195264]
[1761290315119,0.7798,3975.2,3975.1,0.00195264]
[1761290316626,1.67998878,3975.2,3975.1,0.00195264]
[1761290319225,0.7798,3975.2,3975.1,0.00195264]
[1761290321123,0.7798,3975.2,3974.3,0.3354]
[1761290321124,0.3495,3974.5,3974.3,0.3354]
[1761290321327,0.7798,3974.4,3974.3,0.68452]
[1761290321731,0.7798,3974.4,3974.3,1.01992]
[1761290322124,0.7798,3974.4,3974.3,1.02293316]
[1761290324230,0.7798,3974.4,3974.3,0.45583316]
[1761290325130,0.7798,3974.4,3974.3,1.02293316]
[1761290325529,0.7798,3974.4,3974.3,0.00301316]
[1761290327233,0.7798,3974.4,3974.3,0.57011316]
[1761290327634,0.7798,3974.4,3974.3,0.79421316]
[1761290328135,0.5642,3974.4,3974.3,0.79421316]
[1761290329630,0.7798,3974.4,3974.3,0.79421316]
[1761290330034,0.3495,3974.6,3974.4,0.3354]
[1761290330236,0.5642,3974.6,3974.5,1.24399]
[1761290330434,0.5642,3974.6,3974.5,1.37949]
[1761290330935,0.7798,3974.6,3974.5,1.37949]
[1761290332033,0.7798,3974.6,3974.5,1.24399]
[1761290332336,0.7798,3974.6,3974.5,1.01989]
[1761290332636,0.7798,3974.6,3974.5,1.24399]
[1761290333837,0.7798,3974.6,3974.5,1.37949]
[1761290335525,0.2147,3974.6,3974.5,1.37949]
[1761290335935,3.772,3974.8,3974.7,0.45278]
[1761290336133,0.2147,3974.8,3974.7,1.24398]
[1761290336336,0.5642,3974.8,3974.7,1.24398]
[1761290337840,1.46438878,3975.1,3975.0,0.9267]
[1761290338029,0.5642,3975.1,3975.0,0.9267]
[1761290338732,0.7798,3975.1,3975.0,0.7912]
[1761290338942,1.49299437,3975.1,3975.0,0.5671]
[1761290339534,1.49299437,3975.1,3974.7,0.45277]
[1761290339535,0.4301,3974.8,3974.7,0.45277]
[1761290339738,0.7737,3974.8,3974.7,0.98837]
[1761290340134,0.3436,3974.7,3974.5,0.3217]
[1761290340334,0.7737,3974.6,3974.5,0.5356]
[1761290340541,0.7737,3974.6,3974.5,0.9884]
[1761290341037,0.7737,3974.6,3974.5,0.5356]
[1761290341436,0.4528,3974.5,3974.3,0.32471316]
[1761290341636,0.7737,3974.4,3974.3,0.32471316]
[1761290341842,0.7737,3974.4,3974.3,0.53861316]
[1761290345145,1.22651,3974.4,3974.3,0.53861316]
[1761290345543,1.22651,3974.4,3974.3,0.00301316]
[1761290345738,4.43431,3974.4,3974.3,0.00301316]
[1761290346431,5.14750437,3974.4,3974.3,0.00301316]
[1761290347748,3.9815,3974.4,3974.3,0.53861316]
[1761290348447,4.69469437,3974.4,3974.3,0.21691316]
[1761290348845,4.69469437,3974.4,3974.3,0.00301316]
[1761290350643,3.9815,3974.4,3974.3,0.76391316]
[1761290350848,1.67378595,3974.4,3974.3,0.76391316]
[1761290351051,0.7737,3974.4,3974.3,0.76391316]
[1761290351236,0.2102,3974.4,3974.3,0.76391316]
[1761290351441,4.10788595,3974.8,3974.7,0.2139]
[1761290351653,1.45388595,3975.1,3975.0,1.34644]
[1761290351946,1.67378595,3975.1,3975.0,1.34644]
[1761290352651,0.7737,3975.1,3975.0,1.34644]
[1761290352849,0.2102,3975.1,3975.0,1.34644]
[1761290353048,0.5538,3975.1,3975.0,1.34644]
[1761290353352,0.7737,3975.1,3975.0,1.21364]
[1761290353744,0.7737,3975.1,3975.0,1.34644]
[1761290355539,0.5538,3975.1,3975.0,1.34644]
[1761290355846,3.2078,3975.2,3975.0,1.34644]
[1761290355847,3.2078,3975.2,3975.1,0.3217]
[1761290356044,3.2078,3975.2,3975.1,0.7609]
[1761290356246,3.418,3975.2,3975.1,0.7609]
[1761290356543,3.7616,3975.2,3975.1,0.7609]
[1761290358251,3.9815,3975.2,3975.1,0.7609]
[1761290360952,3.9815,3975.2,3975.1,0.2139]
[1761290361457,3.9815,3975.2,3975.0,0.45274]
[1761290361458,0.7737,3975.1,3975.0,0.98834]
[1761290364056,0.7737,3975.1,3975.0,1.21364]
[1761290365960,0.7737,3975.1,3975.0,1.34644]
[1761290366354,0.2102,3975.1,3975.0,1.34644]
[1761290366655,0.2102,3975.1,3975.0,2.05963437]
[1761290366850,3.2078,3975.2,3975.1,0.7609]
[1761290367062,0.5538,3975.4,3975.3,0.7609]
[1761290367952,0.7737,3975.4,3975.3,0.7609]
[1761290368555,0.5538,3975.6,3975.5,0.8937]
[1761290368961,3.2078,3975.7,3975.6,0.77437]
[1761290369163,3.7615,3975.7,3975.6,1.20157]
[1761290372566,3.9929,3975.7,3975.6,1.20157]
[1761290372763,0.8976,3975.5,3975.4,0.45269]
[1761290373265,0.7687,3975.3,3975.2,0.45272]
[1761290373662,0.7687,3975.3,3975.2,1.00652]
[1761290375563,0.7687,3975.3,3975.2,0.5538]
[1761290376066,0.7687,3975.3,3975.1,0.45272]
[1761290376270,0.3228,3975.2,3975.1,0.45272]
[1761290376565,0.7687,3975.2,3975.1,0.45272]
[1761290377767,0.7687,3975.2,3975.1,1.00652]
[1761290378263,1.48189437,3975.2,3975.1,1.00652]
[1761290378659,0.7687,3975.2,3975.1,1.23362]
[1761290380759,0.7687,3975.2,3975.1,0.7809]
[1761290381059,1.48189437,3975.2,3975.1,0.5538]
[1761290381261,0.7687,3975.1,3975.0,0.45274]
[1761290381463,0.7687,3975.1,3975.0,1.00654]
[1761290385264,0.3228,3975.1,3975.0,1.36034]
[1761290385771,0.5373,3975.1,3975.0,1.36034]
[1761290387970,2.18,3975.2,3975.1,0.7809]
[1761290388171,2.7173,3975.2,3975.1,0.7809]
[1761290388366,2.9487,3975.2,3975.1,0.7809]
[1761290389172,2.9487,3975.2,3975.0,0.45274]
[1761290389469,0.7687,3975.1,3975.0,1.00654]
[1761290390272,0.7687,3975.1,3975.0,1.23364]
[1761290392368,0.7687,3975.1,3975.0,0.67864]
[1761290392865,0.7687,3975.1,3975.0,1.00654]
[1761290393175,0.7687,3975.1,3975.0,0.5538]
[1761290394078,0.7687,3975.1,3975.0,0.7809]
[1761290405284,0.3377,3974.6,3974.4,0.90197699]
[1761290405481,0.7693,3974.4,3974.3,0.53361316]
[1761290405877,0.7693,3974.4,3974.3,0.74781316]
[1761290406280,0.3377,3974.6,3974.5,0.426]
[1761290406485,0.5494,3974.7,3974.6,0.7448]
[1761290407078,1.45100899,3974.7,3974.6,0.7448]
[1761290407285,0.7693,3974.7,3974.6,0.7448]
[1761290407684,1.67090899,3974.7,3974.6,0.7448]
[1761290409398,0.9059,3974.5,3974.4,0.98341]
[1761290409588,0.7693,3974.5,3974.4,1.19761]
[1761290409891,0.5494,3974.7,3974.6,0.87878]
[1761290410093,0.7693,3974.7,3974.6,0.87878]
[1761290410488,0.7693,3974.7,3974.6,1.19758]
[1761290411392,0.7693,3974.7,3974.6,0.7448]
[1761290412690,1.67090899,3974.9,3974.8,0.7448]
[1761290413594,1.67090899,3974.9,3974.8,0.5306]
[1761290414697,1.67090899,3974.9,3974.8,0.7448]
[1761290415185,0.7693,3974.9,3974.8,0.7448]
[1761290415388,2.7294,3975.2,3975.1,0.45273]
[1761290415585,2.18,3975.2,3975.1,1.19753]
[1761290415884,2.3917,3975.2,3975.1,1.19753]
[1761290416080,2.7294,3975.2,3975.1,1.19753]
[1761290420891,2.9493,3975.2,3975.1,1.19753]
[1761290426800,2.9493,3975.2,3975.1,1.20794326]
[1761290428595,2.18,3975.2,3975.1,2.06359344]
[1761290428994,2.966,3975.2,3975.1,1.20794326]
[1761290429198,2.966,3975.2,3975.1,0.75521326]
[1761290429395,2.966,3975.2,3975.1,0.75674391]
[1761290435711,2.966,3975.2,3975.1,0.01194391]
[1761290437013,2.966,3975.2,3975.1,0.56194391]
[1761290438215,2.966,3975.2,3975.1,0.56352666]
[1761290438406,2.966,3975.2,3975.1,0.23742666]
[1761290438613,2.966,3975.2,3975.1,0.01352666]
[1761290441830,2.966,3975.2,3975.1,0.56352666]
[1761290442024,2.966,3975.2,3975.1,0.78262666]
[1761290444011,2.966,3975.2,3975.1,0.56352666]
[1761290444609,2.966,3975.2,3975.1,0.23742666]
[1761290444816,2.966,3975.2,3975.1,0.01352666]
[1761290446115,3.86760899,3975.2,3975.1,0.01352666]
[1761290446812,13.19841349,3975.2,3975.1,0.01352666]
[1761290447007,12.41241349,3975.2,3975.1,0.01505359]
[1761290447212,12.83541349,3975.2,3975.1,0.01505359]
[1761290447709,13.63533349,3975.2,3975.1,0.01505359]
[1761290453107,13.63533349,3975.2,3974.3,0.00301316]
[1761290453108,0.7702,3974.4,3974.3,0.00301316]
[1761290455025,9.6502,3974.4,3974.3,0.00301316]
[1761290456521,10.50585018,3974.4,3974.3,0.00301316]
[1761290456723,10.36364647,3974.4,3974.3,0.00301316]
[1761290457615,11.26423548,3974.4,3974.3,0.00301316]
[1761290458718,2.38423548,3974.4,3974.3,0.00301316]
[1761290458909,10.36364647,3974.4,3974.3,0.77211316]
[1761290459110,0.3472,3974.4,3974.3,0.77211316]
[1761290459316,0.7923,3974.5,3974.4,0.3231]
[1761290459515,0.7923,3974.4,3974.3,0.32611316]
[1761290459720,0.7923,3974.4,3974.3,0.00301316]
[1761290462630,0.7923,3974.4,3974.3,0.54541316]
[1761290462931,0.7923,3974.4,3974.3,0.00301316]
[1761290466225,1.14096256,3974.4,3974.3,0.00301316]
[1761290466530,1.14096256,3974.4,3974.3,0.54541316]
[1761290466735,1.14096256,3974.4,3974.3,0.77271316]
[1761290469338,1.14096256,3974.4,3974.3,0.00301316]
[1761290469728,1.14096256,3974.4,3974.3,0.54541316]
[1761290472837,1.14096256,3974.4,3974.3,0.00301316]
[1761290473932,1.14096256,3974.4,3974.3,0.54541316]
[1761290475036,1.14096256,3974.4,3974.3,0.77271316]
[1761290489946,0.90796256,3974.4,3974.3,0.77271316]
[1761290490544,0.34866256,3974.4,3974.3,0.77271316]
[1761290497247,0.34866256,3974.4,3974.3,3.98051316]
[1761290498341,0.34866256,3974.4,3974.3,0.77271316]
[1761290498750,1.11416256,3974.4,3974.3,0.77271316]
[1761290499253,0.34866256,3974.4,3974.3,0.77271316]
[1761290499845,0.57496256,3974.4,3974.3,3.98051316]
[1761290500041,0.90416256,3974.4,3974.3,3.98051316]
[1761290501750,1.11416256,3974.4,3974.3,3.98051316]
[1761290501957,1.11416256,3974.4,3974.3,3.75321316]
[1761290502367,1.11416256,3974.4,3974.3,3.21081316]
[1761290503565,1.11416256,3974.4,3974.3,0.00301316]
[1761290515068,1.11416256,3974.4,3974.3,0.55431316]
[1761290517068,1.11416256,3974.4,3974.3,0.00301316]
[1761290529877,9.99016256,3974.4,3974.3,0.00301316]
[1761290530374,9.99016256,3974.4,3974.3,0.36301316]
[1761290531472,1.11416256,3974.4,3974.3,1.14851316]
[1761290531679,2.0150159,3974.4,3974.3,1.14851316]
[1761290533372,2.0150159,3974.4,3974.3,0.36301316]
[1761290533680,2.0150159,3974.4,3974.3,0.71271316]
[1761290533973,2.0150159,3974.4,3974.3,0.93441316]
[1761290534178,1.11416256,3974.4,3974.3,0.36301316]
[1761290534581,2.01512589,3974.4,3974.3,0.36301316]
[1761290535373,1.11416256,3974.4,3974.3,0.36301316]
[1761290537777,1.11416256,3974.4,3974.3,0.58471316]
[1761290537975,1.11416256,3974.4,3974.3,0.93441316]
[1761290539072,1.11416256,3974.4,3974.3,0.58471316]
[1761290539270,1.11416256,3974.4,3974.3,0.36301316]
[1761290540987,1.11416256,3974.4,3974.3,0.71271316]
[1761290541188,1.11416256,3974.4,3974.3,0.93441316]
[1761290542188,1.11416256,3974.4,3974.3,0.58471316]
[1761290543083,1.11416256,3974.4,3974.3,0.93441316]
[1761290543282,1.11416256,3974.4,3974.3,1.14851316]
[1761290545783,1.11416256,3974.4,3974.3,0.36301316]
[1761290546086,3.32102096,3974.4,3974.3,0.36301316]
[1761290549789,6.52882096,3974.4,3974.3,0.36301316]
[1761290552288,15.40282096,3974.4,3974.3,0.36301316]
[1761290553294,6.52882096,3974.4,3974.3,0.36301316]
[1761290553487,6.52882096,3974.4,3974.3,0.57511316]
[1761290553696,14.54684608,3974.4,3974.3,1.11241316]
[1761290554088,13.19596256,3974.4,3974.3,1.11241316]
[1761290554285,4.32196256,3974.4,3974.3,1.11241316]
[1761290555090,1.11416256,3974.4,3974.3,1.11241316]
[1761290555888,0.57496256,3974.4,3974.3,1.11241316]
[1761290556190,0.34866256,3974.4,3974.3,1.11241316]
[1761290562389,0.34866256,3974.4,3974.3,4.32021316]
[1761290562995,0.34866256,3974.4,3974.3,5.17618804]
[1761290563495,0.34866256,3974.4,3974.3,4.32021316]
[1761290566191,0.3205,3974.9,3974.5,0.4573]
[1761290566497,0.5341,3974.9,3974.8,0.7494]
[1761290567291,0.5341,3975.1,3975.0,1.33614]
[1761290567693,0.2136,3975.1,3975.0,1.33614]
[1761290567899,0.5341,3975.1,3975.0,1.33614]
[1761290568100,0.7614,3975.1,3975.0,1.33614]
[1761290568302,0.7614,3975.1,3975.0,1.20214]
[1761290568797,0.7614,3975.1,3975.0,0.7494]
[1761290569293,0.7614,3975.1,3975.0,1.1096]
[1761290570499,0.7614,3975.1,3975.0,0.3602]
[1761290576502,0.7614,3975.1,3975.0,0.8956]
[1761290576707,0.7614,3975.1,3975.0,1.1096]
[1761290580703,1.47448497,3975.1,3975.0,1.1096]
[1761290587407,2.3762352,3975.1,3975.0,0.3602]
[1761290587611,1.47448497,3975.1,3975.0,0.3602]
[1761290588927,1.22571,3974.4,3974.3,0.00301316]
[1761290589234,5.14659497,3974.4,3974.3,0.00301316]
[1761290591117,6.49616118,3974.4,3974.3,0.00301316]
[1761290592118,5.14659497,3974.4,3974.3,0.00301316]
[1761290592629,4.43351,3974.4,3974.3,0.00301316]
[1761290592823,5.14659497,3974.4,3974.3,0.00301316]
[1761290596232,6.04511835,3974.4,3974.3,0.00301316]
[1761290596927,0.45283,3974.2,3974.1,0.4558]
[1761290597122,0.4454,3972.9,3972.8,0.02517116]
[1761290597331,4.69378497,3972.9,3972.8,0.57827116]
[1761290597522,0.5506,3972.9,3972.8,0.80637116]
[1761290597730,0.2231,3972.9,3972.8,0.80637116]
[1761290597923,0.2231,3972.9,3972.8,0.80925867]
[1761290598124,0.7756697,3972.9,3972.8,0.35565867]
[1761290598330,4.69655467,3972.9,3972.8,0.58115867]
[1761290598532,4.69655467,3972.9,3972.8,0.80925867]
[1761290598732,0.0027697,3972.9,3972.8,1.26224867]
[1761290605136,0.0027697,3972.9,3972.8,4.47004867]
[1761290605727,0.4529,3973.7,3973.3,0.45293]
[1761290605929,1.0035,3973.7,3973.6,0.7812]
[1761290606237,1.2258,3973.7,3973.6,0.7812]
[1761290606634,0.7729,3973.7,3973.6,0.7812]
[1761290606835,0.77497089,3973.7,3973.6,0.7812]
[1761290608337,0.00207089,3973.7,3973.6,0.7812]
[1761290609139,0.55947089,3973.7,3973.6,0.7812]
[1761290609840,0.00207089,3973.7,3973.6,0.7812]
[1761290610545,0.55657089,3973.7,3973.6,0.7812]
[1761290615848,0.78737089,3973.7,3973.6,0.7812]
[1761290619549,0.7853,3973.4,3973.3,0.567]
[1761290620151,0.7853,3973.4,3973.3,0.2269]
[1761290620351,0.7853,3973.4,3973.3,0.567]
[1761290621448,0.55657089,3973.7,3973.6,0.793]
[1761290621758,0.78737089,3973.7,3973.6,1.2338]
[1761290624446,0.78737089,3973.7,3973.6,0.7809]
[1761290628258,0.21367089,3973.7,3973.6,0.7809]
[1761290628459,0.00207089,3973.7,3973.6,0.7809]
[1761290633365,1.45277747,3974.5,3974.4,1.23371]
[1761290633963,0.5545,3974.5,3974.4,1.23371]
[1761290634270,0.78781462,3974.5,3974.4,1.23371]
[1761290634863,0.55701462,3974.5,3974.4,1.23371]
[1761290635069,0.00251462,3974.5,3974.4,1.23371]
[1761290635464,0.78781462,3974.5,3974.4,1.23371]
[1761290635967,0.00251462,3974.5,3974.4,1.23371]
[1761290636967,0.00251462,3974.5,3974.4,1.43642863]
[1761290637357,0.00251462,3974.5,3974.4,1.23371]
[1761290637963,3.2078,3975.0,3974.9,0.7809]
[1761290638859,3.2102074,3975.0,3974.9,0.7809]
[1761290640965,0.0024074,3975.0,3974.9,0.7809]
[1761290642365,2.18,3975.2,3975.1,0.7678]
[1761290642568,2.18,3975.2,3975.1,1.62324199]
[1761290643376,2.1821884,3975.2,3975.1,1.62324199]
[1761290643670,2.1821884,3975.2,3975.1,6.62324199]
[1761290643859,2.1821884,3975.2,3975.1,0.7678]
[1761290644065,2.1821884,3975.2,3975.1,9.6358]
[1761290646069,2.1821884,3975.2,3975.1,14.6358]
[1761290647371,0.7897,3976.2,3976.1,0.4354]
[1761290647573,0.7897,3976.2,3976.1,0.7678]
[1761290648469,0.7923192,3976.2,3976.1,0.77102907]
[1761290650063,0.5611192,3976.2,3976.1,0.77102907]
[1761290650464,0.2316192,3976.2,3976.1,0.77102907]
[1761290651077,0.5611192,3976.2,3976.1,0.77102907]
[1761290653386,0.2316192,3976.2,3976.1,0.77102907]
[1761290654181,0.5611192,3976.2,3976.1,0.77102907]
[1761290654584,0.7923192,3976.2,3976.1,0.77102907]
[1761290657473,0.0026192,3976.2,3976.1,0.77102907]
[1761290664281,0.5585,3976.9,3976.5,0.1393]
[1761290664487,0.5585,3976.9,3976.8,1.22034]
[1761290665279,0.56150343,3976.9,3976.8,1.22034]
[1761290666484,0.23200343,3976.9,3976.8,1.22034]
[1761290666685,0.00300343,3976.9,3976.8,1.22034]
[1761290667389,0.56150343,3976.9,3976.8,1.22034]
[1761290668585,0.23200343,3976.9,3976.8,1.22034]
[1761290668887,0.00300343,3976.9,3976.8,1.22034]
[1761290670183,3.7405,3977.5,3977.4,0.78037]
[1761290670388,3.7405,3977.5,3977.4,1.22487]
[1761290670777,0.5327,3977.5,3977.4,1.22487]
[1761290670980,0.5327,3977.5,3977.0,3.3425]
[1761290670981,0.5327,3977.8,3977.7,0.7724]
[1761290671184,0.21357449,3977.8,3977.7,0.7724]
[1761290671383,0.53577449,3977.8,3977.7,0.7724]
[1761290671791,0.76427449,3977.8,3977.7,0.7724]
[1761290672291,0.76427449,3977.8,3977.5,0.3279]
[1761290672485,0.90276,3977.5,3977.3,0.213]
[1761290672692,0.7612,3977.1,3977.0,0.5409]
[1761290677392,0.7612,3977.1,3977.0,0.7724]
[1761290677695,0.7612,3977.1,3977.0,0.9071]
[1761290677892,0.2105,3977.1,3977.0,0.9071]
[1761290678294,0.5327,3977.1,3977.0,0.9071]
[1761290678693,0.2105,3977.1,3977.0,0.9071]
[1761290679397,0.5327,3977.1,3977.0,0.9071]
[1761290679596,0.2105,3977.1,3977.0,0.9071]
[1761290680098,0.5327,3977.3,3977.2,0.7724]
[1761290680592,0.7612,3977.3,3977.2,0.7724]
[1761290680793,0.7612,3977.7,3977.6,0.7724]
[1761290681594,0.7612,3977.3,3977.2,0.7724]
[1761290685691,0.7612,3977.0,3976.9,1.22493]
[1761290686498,0.5327,3977.0,3976.9,1.22493]
[1761290686703,0.2105,3977.0,3976.9,1.22493]
[1761290687402,0.5327,3977.0,3976.9,1.22493]
[1761290687602,0.7612,3977.0,3976.9,1.22493]
[1761290689702,0.5671,3977.0,3976.6,3.6523]